bitfinex/quotes_ETHUSD_20251124
["timestamp","ask_amount","ask_price","bid_price","bid_amount"]
[1763950163974,0.002,2858.8,2857.6,0.90699264]
[1763950164179,0.002,2858.8,2857.6,0.33202308]
[1763950164376,0.002,2858.8,2858.7,0.1]
[1763950164684,0.002,2858.8,2858.5,0.1]
[1763950165000,0.002,2858.8,2858.3,0.1]
[1763950165199,0.002,2858.8,2858.0,0.1]
[1763950165524,0.4764,2858.7,2858.3,0.1]
[1763950165722,0.4764,2858.7,2857.1,0.1926]
[1763950166209,0.4764,2858.7,2858.1,0.1]
[1763950166594,0.4764,2858.7,2857.9,0.1]
[1763950167421,1.38339264,2858.7,2857.7,0.1]
[1763950167619,0.1922,2857.8,2857.6,0.1]
[1763950167806,0.1922,2857.8,2857.4,0.1]
[1763950167979,0.1922,2857.8,2857.6,0.1]
[1763950168180,0.6686,2857.8,2857.3,0.1]
[1763950168412,0.6686,2857.8,2857.4,0.1]
[1763950168716,0.1922,2857.8,2857.6,0.1]
[1763950168912,0.90899264,2858.8,2857.7,0.1]
[1763950168913,0.4764,2858.1,2857.7,0.1]
[1763950169114,0.4764,2858.7,2858.1,0.1]
[1763950169305,0.4764,2858.6,2858.1,0.1]
[1763950170387,0.4764,2858.6,2858.1,1.84382745]
[1763950170681,0.4764,2858.6,2857.0,3.69372295]
[1763950170682,0.4764,2858.6,2857.8,1.74382745]
[1763950170881,0.4764,2858.6,2857.9,0.1]
[1763950171382,0.4764,2858.6,2858.0,1.74382745]
[1763950171587,0.4764,2858.6,2857.8,1.74382745]
[1763950171819,1.38339264,2858.6,2857.7,1.74382745]
[1763950172427,0.1922,2857.8,2857.7,1.74382745]
[1763950172601,0.1922,2857.8,2857.0,0.001]
[1763950172800,0.1922,2857.8,2857.5,0.1]
[1763950172998,0.6686,2857.8,2857.5,0.1]
[1763950173310,0.4764,2857.7,2857.5,0.1]
[1763950173897,0.4764,2857.7,2857.2,0.1]
[1763950174098,0.4764,2857.7,2857.5,0.1]
[1763950174423,0.4764,2857.7,2857.5,0.101]
[1763950174598,0.4913,2857.6,2857.5,0.001]
[1763950175000,0.4913,2857.4,2857.0,0.001]
[1763950175199,0.4913,2857.1,2857.0,0.001]
[1763950175722,0.4764,2857.1,2857.0,0.001]
[1763950176902,4.88344514,2857.1,2857.0,0.001]
[1763950177104,0.1871,2856.8,2855.9,0.1]
[1763950177614,0.4921,2856.7,2855.9,0.1]
[1763950178097,0.4921,2856.7,2856.0,0.1]
[1763950179531,0.4921,2856.7,2855.9,0.1]
[1763950179728,0.4921,2856.7,2855.2,0.1946]
[1763950179908,0.4921,2856.7,2856.0,0.1]
[1763950181431,4.81368161,2855.5,2854.2,0.05]
[1763950181593,0.1871,2854.3,2853.1,0.2946]
[1763950181996,0.4921,2854.2,2853.5,0.1]
[1763950182230,0.4921,2854.2,2852.9,0.1]
[1763950182231,0.1871,2853.6,2852.9,0.1]
[1763950182729,0.6792,2853.6,2852.2,0.2946]
[1763950183034,0.6792,2853.6,2853.0,0.1]
[1763950183207,0.6792,2853.6,2852.2,0.2946]
[1763950183534,0.6792,2853.6,2853.2,0.1]
[1763950184121,0.4921,2854.2,2853.5,0.1]
[1763950185333,0.4921,2854.2,2852.3,0.67467519]
[1763950185521,0.90699264,2854.1,2853.1,0.1]
[1763950186027,0.4866,2854.0,2852.8,0.1]
[1763950186421,0.4866,2854.0,2851.9,0.3946]
[1763950186758,3.60635,2853.6,2852.4,0.1]
[1763950186916,0.90699264,2853.1,2851.7,0.1]
[1763950187117,0.90699264,2852.9,2851.0,0.0973]
[1763950187422,0.90699264,2852.9,2851.5,0.1]
[1763950187622,7.49676472,2853.0,2851.0,0.3919]
[1763950187623,0.6744,2852.8,2851.0,0.3919]
[1763950187928,0.4866,2852.7,2851.8,0.1]
[1763950188128,0.4866,2852.7,2851.4,0.1]
[1763950188716,0.1878,2851.5,2851.0,0.0973]
[1763950188930,0.1878,2851.5,2851.1,0.1]
[1763950191138,0.6744,2851.5,2851.1,0.1]
[1763950191340,0.6744,2851.5,2850.8,0.001]
[1763950191553,0.4866,2851.4,2850.8,0.001]
[1763950191754,0.4866,2851.4,2850.9,0.1]
[1763950192051,0.1878,2851.7,2851.2,0.1]
[1763950192549,0.1878,2851.7,2850.8,0.001]
[1763950192550,0.4866,2851.6,2850.8,0.001]
[1763950192750,0.4866,2851.6,2851.1,0.1]
[1763950193120,0.4866,2851.6,2850.3,0.23795]
[1763950193322,0.4866,2851.6,2850.8,0.1]
[1763950193655,0.4866,2851.6,2850.2,0.001]
[1763950193952,1.39359264,2851.6,2850.2,0.001]
[1763950194151,0.50880738,2851.5,2850.4,0.1]
[1763950194341,0.4866,2851.4,2850.4,0.1]
[1763950194847,0.4866,2851.4,2850.2,0.001]
[1763950194848,1.39359264,2851.4,2850.2,0.001]
[1763950195050,0.4866,2851.4,2850.2,0.101]
[1763950195350,0.4866,2851.3,2850.5,0.091]
[1763950195555,0.4866,2851.3,2849.6,0.001]
[1763950195556,0.1878,2850.0,2849.6,0.001]
[1763950195919,0.6744,2850.0,2849.6,0.001]
[1763950197487,0.1878,2850.4,2849.8,0.091]
[1763950197682,0.4866,2850.0,2849.6,0.001]
[1763950198700,0.1878,2850.4,2849.6,0.001]
[1763950198881,0.6744,2850.4,2849.8,0.091]
[1763950199067,0.1878,2850.4,2850.1,0.091]
[1763950200456,0.1878,2850.4,2849.6,0.001]
[1763950200654,0.1878,2850.4,2849.8,0.091]
[1763950201231,0.6744,2850.4,2849.8,0.091]
[1763950201568,0.1878,2851.0,2849.6,0.001]
[1763950201769,0.4866,2851.3,2850.3,0.0406]
[1763950201984,0.4866,2852.5,2851.2,0.0973]
[1763950202186,0.1878,2853.3,2850.4,0.2379]
[1763950202187,7.28829,2852.6,2850.4,0.2379]
[1763950202373,5.30028161,2852.7,2850.4,0.2379]
[1763950202374,1.08877352,2852.5,2850.4,0.2379]
[1763950202584,0.4866,2852.6,2850.4,0.2379]
[1763950202767,0.4866,2852.6,2850.5,4.229133]
[1763950203108,0.1878,2852.8,2850.5,4.229133]
[1763950203109,0.1878,2852.8,2850.5,0.239]
[1763950203257,0.1878,2852.9,2852.3,0.091]
[1763950203573,0.1878,2852.9,2851.8,0.091]
[1763950203574,0.6744,2852.9,2851.8,0.091]
[1763950203908,0.4866,2852.8,2851.7,0.0973]
[1763950204198,0.4866,2852.8,2852.1,0.091]
[1763950205204,0.6744,2853.3,2852.6,0.091]
[1763950205641,0.4866,2854.4,2853.2,0.091]
[1763950205942,0.1878,2853.9,2853.3,0.091]
[1763950206312,0.1878,2853.9,2853.8,0.091]
[1763950206517,0.6744,2853.9,2853.0,0.091]
[1763950206741,1.17368068,2853.9,2853.0,0.091]
[1763950207253,0.1878,2854.4,2852.8,0.2379]
[1763950207468,0.6607,2855.0,2852.8,7.24854815]
[1763950207605,0.4729,2854.9,2854.1,0.091]
[1763950207806,5.33147409,2856.2,2852.9,0.72485482]
[1763950207807,0.49928068,2855.2,2854.4,0.091]
[1763950208233,0.49928068,2855.2,2854.3,0.1406]
[1763950208441,0.4729,2855.1,2853.1,0.3785]
[1763950208770,0.4729,2855.1,2854.1,0.091]
[1763950209109,0.1937,2854.2,2853.7,0.091]
[1763950209303,0.49928068,2855.0,2853.7,0.091]
[1763950209511,0.1937,2854.7,2854.1,0.091]
[1763950210045,0.4729,2854.6,2854.0,0.091]
[1763950210207,0.4729,2854.6,2853.8,0.091]
[1763950210754,0.1937,2854.7,2853.8,0.091]
[1763950210937,0.1937,2854.7,2854.2,0.091]
[1763950211103,0.4729,2854.6,2853.8,0.091]
[1763950211545,0.4729,2854.6,2854.1,0.091]
[1763950211809,0.4729,2854.6,2853.1,0.3785]
[1763950212063,0.4729,2854.6,2853.8,0.091]
[1763950212733,0.50766204,2854.5,2853.8,0.091]
[1763950212934,0.1937,2853.9,2853.1,0.1406]
[1763950213134,0.1937,2853.9,2853.2,0.091]
[1763950213449,0.50766204,2854.5,2853.1,0.1406]
[1763950213630,0.4729,2854.5,2853.8,0.091]
[1763950214009,0.1937,2853.9,2853.1,0.1406]
[1763950214554,0.4729,2855.2,2853.2,0.2379]
[1763950214715,0.1937,2855.0,2854.6,0.091]
[1763950214917,0.1937,2855.0,2853.2,0.2379]
[1763950215118,0.6666,2855.0,2854.2,0.091]
[1763950215522,0.4729,2854.9,2854.2,0.091]
[1763950215802,0.97218068,2854.9,2854.2,0.091]
[1763950216865,0.97218068,2854.9,2853.1,0.1406]
[1763950216866,0.4729,2854.8,2854.1,0.091]
[1763950217070,0.4729,2854.8,2853.3,0.2379]
[1763950217257,0.4729,2854.8,2854.2,0.091]
[1763950217470,0.1937,2855.0,2854.2,0.091]
[1763950217696,0.1937,2855.0,2854.3,0.091]
[1763950217868,0.1937,2855.0,2853.7,0.2379]
[1763950217869,0.4729,2854.9,2853.9,0.091]
[1763950218069,0.4729,2854.9,2854.0,0.091]
[1763950218297,0.90699264,2854.8,2853.7,0.091]
[1763950218593,1.0110923,2854.7,2853.7,0.091]
[1763950218898,1.0110923,2854.7,2853.8,0.091]
[1763950219095,0.4729,2854.7,2854.1,0.091]
[1763950219396,0.4729,2854.7,2853.3,0.2379]
[1763950219397,0.4729,2854.7,2854.4,0.091]
[1763950219984,0.4729,2854.7,2854.3,0.091]
[1763950220213,0.4729,2854.7,2854.2,0.091]
[1763950220507,0.4729,2854.7,2854.0,0.091]
[1763950220911,0.1937,2855.0,2854.1,0.091]
[1763950221107,0.20728733,2854.9,2854.1,0.091]
[1763950221519,1.37989264,2854.8,2853.8,0.091]
[1763950221886,0.4729,2854.7,2853.8,0.091]
[1763950222537,0.4729,2854.7,2854.0,0.091]
[1763950223136,0.20728733,2854.9,2853.5,0.03504468]
[1763950223319,0.20728733,2854.9,2854.4,0.091]
[1763950223508,0.1937,2855.0,2853.7,0.2379]
[1763950223711,0.49928068,2855.5,2853.8,0.03504099]
[1763950224042,0.4729,2855.7,2853.8,0.03504099]
[1763950224200,0.97218068,2855.7,2854.8,0.091]
[1763950224545,0.44739167,2855.6,2854.8,0.091]
[1763950224693,0.92029167,2855.6,2854.8,0.091]
[1763950224891,0.4729,2855.6,2855.1,0.091]
[1763950225516,0.1878,2856.0,2855.1,0.1883]
[1763950225707,1.15998068,2856.0,2855.4,0.091]
[1763950226491,1.15998068,2856.0,2855.1,0.0973]
[1763950226492,0.4729,2855.9,2855.1,0.0973]
[1763950226997,0.002,2855.5,2855.1,0.0973]
[1763950227341,0.002,2855.5,2855.3,0.091]
[1763950227696,0.002,2855.5,2855.4,0.091]
[1763950229196,0.002,2855.5,2855.1,0.0973]
[1763950229434,0.002,2855.5,2855.4,0.091]
[1763950229840,0.002,2855.5,2855.4,0.3289]
[1763950230042,0.002,2855.5,2855.4,0.2379]
[1763950230345,0.002,2855.5,2855.4,0.3289]
[1763950231022,0.002,2855.5,2855.4,3.8310363]
[1763950231329,0.002,2855.5,2855.4,13.8779224]
[1763950231534,0.002,2855.5,2855.4,4.8853051]
[1763950231832,0.002,2855.5,2855.4,0.3289]
[1763950232804,0.002,2855.5,2855.4,0.091]
[1763950234798,0.002,2855.5,2855.3,0.091]
[1763950235015,0.002,2855.5,2855.1,0.0973]
[1763950235275,0.002,2855.5,2855.4,0.091]
[1763950237105,0.002,2855.5,2855.2,0.091]
[1763950237414,0.002,2855.5,2854.9,0.0973]
[1763950237564,0.002,2855.5,2854.0,7.00770846]
[1763950237565,0.002,2855.5,2854.7,0.0973]
[1763950237759,0.002,2855.5,2855.1,0.091]
[1763950238011,0.4887,2855.4,2854.5,0.0973]
[1763950238163,0.002,2855.5,2855.0,0.091]
[1763950238362,0.002,2855.5,2854.6,0.27293117]
[1763950238588,0.002,2855.5,2855.4,0.091]
[1763950238799,0.002,2855.5,2855.1,0.091]
[1763950239008,0.002,2855.5,2855.3,0.091]
[1763950239224,0.002,2855.5,2855.4,0.091]
[1763950239823,0.002,2855.5,2854.9,0.2379]
[1763950240025,0.002,2855.5,2855.4,0.091]
[1763950240398,0.002,2855.5,2855.4,0.3289]
[1763950241417,0.002,2855.5,2855.1,0.091]
[1763950241623,0.002,2855.5,2854.6,0.2379]
[1763950241804,0.002,2855.5,2855.2,0.091]
[1763950242116,0.002,2855.5,2854.6,0.2379]
[1763950242117,0.002,2855.5,2855.3,0.091]
[1763950243421,0.002,2855.5,2855.4,0.091]
[1763950243751,0.002,2855.5,2854.6,0.2379]
[1763950243903,0.002,2855.5,2855.3,0.091]
[1763950244103,0.002,2855.5,2855.4,0.2379]
[1763950244412,0.002,2855.5,2855.4,0.3289]
[1763950244610,0.002,2855.5,2855.4,0.5668]
[1763950245519,0.002,2855.8,2855.5,17.44514]
[1763950245716,0.002,2855.8,2855.7,12.578884]
[1763950246094,0.002,2855.8,2855.7,12.816784]
[1763950246522,0.002,2855.8,2855.7,14.040994]
[1763950247028,0.002,2856.1,2855.8,21.568674]
[1763950247199,0.002,2857.6,2857.5,0.091]
[1763950247796,0.002,2857.6,2857.5,0.3289]
[1763950248487,0.962,2857.6,2857.5,0.091]
[1763950248690,0.4857,2857.6,2857.5,0.091]
[1763950249025,0.002,2857.6,2857.5,0.091]
[1763950249804,0.962,2857.6,2856.7,0.3776]
[1763950250008,0.4857,2857.6,2857.2,0.091]
[1763950250196,0.002,2857.6,2857.5,0.091]
[1763950250532,0.4783,2857.6,2857.5,0.091]
[1763950250693,0.962,2857.6,2857.5,0.091]
[1763950251114,0.962,2857.6,2857.2,0.091]
[1763950251323,0.4857,2857.6,2857.2,0.091]
[1763950251515,0.4857,2857.6,2856.7,0.1406]
[1763950251693,0.962,2857.6,2856.7,0.52852077]
[1763950252010,0.962,2857.6,2857.3,0.091]
[1763950252218,0.962,2857.6,2857.4,0.091]
[1763950252219,0.002,2857.6,2857.4,0.091]
[1763950252418,0.002,2857.6,2857.5,0.091]
[1763950253424,0.962,2857.6,2857.5,0.091]
[1763950254730,0.962,2857.6,2856.1,0.1406]
[1763950254932,0.4763,2857.5,2856.9,0.091]
[1763950255132,0.4763,2857.5,2856.5,0.091]
[1763950255343,0.4763,2857.5,2856.8,0.091]
[1763950255544,0.4763,2857.5,2856.2,0.27291155]
[1763950255737,0.4763,2857.5,2857.4,0.091]
[1763950256644,0.002,2857.6,2857.4,0.091]
[1763950257034,0.4783,2857.6,2857.4,0.091]
[1763950257546,0.002,2857.6,2857.4,0.091]
[1763950257721,0.96,2857.5,2856.6,0.2379]
[1763950257920,0.96,2857.5,2856.1,0.1406]
[1763950257921,0.96,2857.5,2857.3,0.091]
[1763950258129,0.4763,2857.4,2857.0,0.091]
[1763950258449,0.4763,2857.4,2856.1,0.1406]
[1763950258648,0.4763,2857.4,2856.7,0.091]
[1763950258826,0.39759612,2857.3,2856.4,0.091]
[1763950259225,0.4763,2857.2,2856.4,0.091]
[1763950259451,0.002,2857.6,2856.5,0.2379]
[1763950259751,0.002,2857.6,2857.5,0.091]
[1763950260651,0.002,2857.6,2856.3,3.6416328]
[1763950260967,0.002,2857.6,2857.5,0.091]
[1763950261576,0.002,2857.6,2857.5,0.3289]
[1763950261866,0.002,2857.6,2857.5,3.82846255]
[1763950262058,0.002,2857.6,2857.5,4.56477715]
[1763950263454,0.002,2857.6,2857.5,22.45029815]
[1763950263759,0.002,2857.6,2857.5,7.68580015]
[1763950264064,0.002,2857.6,2857.5,7.44772515]
[1763950264458,0.002,2857.6,2857.5,0.8273146]
[1763950264638,0.002,2857.6,2857.5,0.091]
[1763950265882,0.002,2857.6,2857.5,12.41776155]
[1763950266296,0.002,2857.6,2857.5,6.64315755]
[1763950266495,0.002,2857.6,2857.5,0.091]
[1763950266809,0.4579,2857.6,2856.3,0.1406]
[1763950266948,0.1842,2856.8,2856.7,0.091]
[1763950267153,0.1842,2856.8,2856.0,0.001]
[1763950267462,0.4559,2856.7,2856.1,0.091]
[1763950268374,0.1842,2856.8,2856.0,0.001]
[1763950268375,0.1842,2856.8,2856.2,0.1406]
[1763950268575,0.4559,2857.5,2856.3,0.03501032]
[1763950268896,0.4559,2857.5,2857.4,0.091]
[1763950269127,0.4559,2857.5,2856.2,0.50489703]
[1763950269402,0.4559,2857.5,2856.4,0.237]
[1763950269552,0.4559,2857.5,2857.3,0.091]
[1763950269751,0.4559,2857.5,2856.2,0.3785]
[1763950269752,0.4559,2857.5,2857.0,0.091]
[1763950270189,0.4559,2857.5,2857.4,0.091]
[1763950270483,0.1862,2857.9,2856.4,7.079169]
[1763950270687,0.1862,2857.9,2857.5,0.091]
[1763950270985,0.1862,2857.9,2856.7,5.14924]
[1763950271188,0.002,2857.9,2857.5,0.091]
[1763950271906,0.1862,2857.9,2857.5,0.091]
[1763950272257,0.4579,2857.6,2857.5,0.091]
[1763950272687,0.4579,2857.6,2857.1,0.091]
[1763950272853,0.002,2857.6,2857.1,0.091]
[1763950273054,0.002,2857.6,2857.5,0.091]
[1763950273302,0.002,2857.9,2857.8,0.091]
[1763950273599,0.002,2857.9,2857.8,6.4013172]
[1763950273800,0.002,2857.9,2857.8,7.56748638]
[1763950274150,0.002,2857.9,2857.8,15.95510602]
[1763950274456,0.002,2857.9,2857.8,15.43910602]
[1763950275156,0.002,2857.9,2857.8,24.46914902]
[1763950275491,0.002,2857.9,2857.8,23.22431302]
[1763950275785,0.002,2857.9,2857.8,11.49659302]
[1763950275977,0.002,2857.9,2857.8,11.40559302]
[1763950276292,0.002,2857.9,2857.8,31.99573902]
[1763950276585,0.002,2857.9,2857.8,15.65599602]
[1763950276791,0.002,2857.9,2857.8,7.97513638]
[1763950276951,0.002,2857.9,2857.8,8.21213638]
[1763950277287,0.002,2857.9,2857.8,22.20486338]
[1763950277470,0.002,2857.9,2857.8,21.88440338]
[1763950277664,0.002,2857.9,2857.8,14.12971538]
[1763950278381,0.002,2857.9,2857.8,18.78639338]
[1763950279289,0.002,2857.9,2857.8,14.44359538]
[1763950279469,0.002,2857.9,2857.8,13.93664738]
[1763950279667,0.002,2857.9,2857.8,10.92978038]
[1763950279863,0.002,2857.9,2857.8,8.01082038]
[1763950280259,0.002,2857.9,2857.8,19.07749538]
[1763950280585,0.002,2857.9,2857.8,19.89348802]
[1763950280761,0.002,2857.9,2857.8,19.98448802]
[1763950280963,0.002,2857.9,2857.8,19.74748802]
[1763950281178,0.002,2857.9,2857.8,19.98448802]
[1763950281378,0.002,2857.9,2857.8,11.56507402]
[1763950281787,0.002,2857.9,2857.8,4.21143638]
[1763950282190,0.002,2857.9,2857.8,6.55346838]
[1763950282374,0.002,2857.9,2857.8,4.21143638]
[1763950282689,0.002,2857.9,2857.8,4.44843638]
[1763950283091,0.1862,2857.9,2857.8,0.091]
[1763950283301,0.002,2857.9,2857.8,0.091]
[1763950283590,0.002,2857.9,2857.8,0.328]
[1763950283791,0.002,2857.9,2857.8,0.091]
[1763950283960,0.1862,2857.9,2857.8,0.091]
[1763950284371,0.6421,2857.9,2856.5,0.2359]
[1763950284598,0.4559,2857.8,2856.6,0.45905297]
[1763950284802,0.4559,2857.8,2857.2,0.091]
[1763950285000,0.4559,2857.8,2856.8,0.091]
[1763950285201,0.1842,2856.9,2856.8,0.091]
[1763950285388,0.6401,2856.9,2856.8,0.091]
[1763950286401,0.6401,2856.9,2856.1,3.63986356]
[1763950286402,0.4559,2857.3,2856.2,0.03501155]
[1763950286608,0.1842,2857.2,2857.1,0.091]
[1763950286811,0.1842,2857.2,2857.0,0.091]
[1763950287008,0.4559,2857.1,2856.9,0.091]
[1763950287306,0.4559,2857.1,2857.0,0.091]
[1763950287493,0.4559,2857.1,2856.0,0.238]
[1763950287697,0.4559,2857.1,2856.7,0.091]
[1763950287880,0.4559,2857.1,2856.0,3.5023013]
[1763950288084,0.4559,2857.1,2857.0,0.091]
[1763950288393,0.4559,2857.1,2856.1,0.5475429]
[1763950288595,0.4559,2857.1,2857.0,0.091]
[1763950289216,0.4559,2857.1,2856.7,0.091]
[1763950289512,0.4559,2857.1,2857.0,0.091]
[1763950289675,0.1842,2857.2,2857.0,0.091]
[1763950289876,0.1842,2857.2,2857.1,0.091]
[1763950290277,0.6401,2857.2,2857.1,0.091]
[1763950291946,0.1842,2857.2,2857.1,0.091]
[1763950292554,0.6401,2857.2,2857.1,0.091]
[1763950294214,0.6401,2857.2,2856.9,0.091]
[1763950294215,1.1045,2857.2,2856.9,0.091]
[1763950294440,0.4559,2857.1,2857.0,0.091]
[1763950294745,0.4559,2857.1,2857.0,0.092]
[1763950295040,0.9203,2857.1,2857.0,0.001]
[1763950295239,0.9203,2857.1,2857.0,0.092]
[1763950296411,0.9203,2857.1,2857.0,0.001]
[1763950301226,0.4644,2857.1,2857.0,0.001]
[1763950301530,0.9205,2857.1,2857.0,0.092]
[1763950301740,0.4644,2857.1,2857.0,0.092]
[1763950302074,0.9205,2857.1,2857.0,0.092]
[1763950302220,0.9205,2857.1,2857.0,0.001]
[1763950302653,0.9205,2857.1,2857.0,0.092]
[1763950306617,0.1842,2857.2,2857.0,0.092]
[1763950306835,0.1842,2857.2,2857.1,0.091]
[1763950308132,0.6708,2857.2,2857.1,0.091]
[1763950308338,1.1566,2857.2,2857.1,0.091]
[1763950308957,1.1566,2857.2,2857.0,0.001]
[1763950309137,0.9724,2857.1,2857.0,0.092]
[1763950309884,0.9724,2857.1,2857.0,0.001]
[1763950314261,0.9724,2857.1,2857.0,0.092]
[1763950314472,0.9724,2857.1,2857.0,0.001]
[1763950314672,0.4866,2857.1,2857.0,0.001]
[1763950314851,0.9724,2857.1,2857.0,0.092]
[1763950315370,0.9724,2857.1,2857.0,0.001]
[1763950316550,0.1842,2857.2,2857.1,0.091]
[1763950316752,0.1842,2857.2,2857.0,0.001]
[1763950316753,0.002,2857.6,2857.0,0.001]
[1763950316958,0.4878,2857.6,2857.5,0.091]
[1763950317394,0.9744,2857.6,2857.5,0.091]
[1763950318394,0.9744,2857.6,2857.4,0.091]
[1763950318557,0.9724,2857.5,2857.4,0.091]
[1763950318757,0.9724,2857.5,2857.0,0.001]
[1763950318953,0.9724,2857.5,2857.3,0.091]
[1763950318954,0.4858,2857.4,2857.3,0.091]
[1763950319359,0.9724,2857.4,2857.3,0.091]
[1763950319795,0.4866,2857.4,2857.3,0.091]
[1763950319995,0.4866,2857.4,2857.0,0.001]
[1763950319996,0.9724,2857.4,2857.0,0.001]
[1763950320181,0.4858,2857.4,2857.0,0.001]
[1763950320382,0.002,2857.6,2857.3,0.2359]
[1763950320694,0.002,2857.6,2857.5,0.3269]
[1763950320881,0.002,2857.6,2857.5,6.05342455]
[1763950321080,4.0,2859.1,2857.8,0.2319]
[1763950321394,4.0,2859.1,2858.9,0.4162]
[1763950321816,4.0,2859.1,2858.9,0.6481]
[1763950322482,4.0,2859.1,2858.9,0.4162]
[1763950322658,4.0,2859.1,2858.5,0.2319]
[1763950322659,0.97808503,2859.0,2858.2,0.0933]
[1763950322862,0.1879,2858.6,2858.5,0.091]
[1763950323110,0.1879,2858.6,2857.6,0.3252]
[1763950323111,0.00568503,2859.0,2858.9,0.091]
[1763950324162,0.49228503,2859.0,2858.9,0.091]
[1763950324362,0.97808503,2859.0,2858.7,0.091]
[1763950324589,0.1879,2858.9,2858.7,0.091]
[1763950324792,0.4866,2858.8,2858.7,0.091]
[1763950325195,0.9724,2858.8,2857.6,0.0933]
[1763950325400,0.9724,2858.8,2858.1,0.091]
[1763950325571,0.9724,2858.8,2857.3,0.0933]
[1763950325572,0.9724,2858.8,2857.4,0.26689685]
[1763950325773,0.4866,2858.8,2858.6,0.091]
[1763950325979,0.4866,2858.8,2857.4,0.2319]
[1763950325980,0.9724,2858.7,2858.3,0.091]
[1763950326364,0.4866,2858.4,2858.3,0.091]
[1763950326970,0.9478,2858.4,2857.3,0.0933]
[1763950327385,0.9478,2858.4,2858.3,0.091]
[1763950327591,0.4612,2858.3,2857.9,0.091]
[1763950328175,0.4536,2858.0,2857.9,0.091]
[1763950328701,0.9148,2858.0,2857.9,0.091]
[1763950329403,0.9148,2858.0,2857.6,0.091]
[1763950329707,0.6463,2857.9,2857.4,0.091]
[1763950330070,0.4536,2857.5,2857.4,0.091]
[1763950330969,0.9148,2857.5,2857.4,0.091]
[1763950331171,0.1851,2857.9,2857.4,0.091]
[1763950331370,0.6463,2857.9,2857.3,0.001]
[1763950331566,0.4612,2858.2,2857.8,0.091]
[1763950331806,0.4612,2858.2,2858.1,0.091]
[1763950332009,0.002,2858.8,2857.3,0.001]
[1763950332182,0.4612,2858.7,2858.1,0.091]
[1763950332680,0.4536,2858.2,2858.1,0.091]
[1763950333084,0.4612,2858.4,2858.1,0.091]
[1763950333407,0.002,2858.8,2858.7,0.2319]
[1763950333608,0.002,2858.8,2858.7,0.3229]
[1763950333813,0.002,2858.8,2858.7,0.5548]
[1763950335277,0.002,2858.8,2858.7,0.96009809]
[1763950335478,0.002,2858.8,2858.7,0.3229]
[1763950336086,0.002,2858.8,2858.7,3.82099353]
[1763950336288,0.002,2858.8,2858.7,7.27218353]
[1763950336910,0.002,2858.8,2858.7,0.5548]
[1763950337286,0.002,2858.8,2858.7,0.091]
[1763950337522,0.002,2858.8,2858.7,0.3229]
[1763950337817,0.002,2858.8,2858.1,0.03498827]
[1763950338019,0.002,2858.8,2858.7,0.091]
[1763950338220,0.002,2858.8,2858.7,0.5548]
[1763950338579,0.002,2858.8,2858.7,0.091]
[1763950339210,0.002,2858.8,2858.7,0.2319]
[1763950339411,0.002,2858.8,2858.7,3.72999353]
[1763950339614,0.002,2858.8,2858.7,0.83702269]
[1763950339815,0.002,2858.8,2858.7,0.091]
[1763950341525,0.002,2858.8,2858.7,0.2319]
[1763950341686,0.002,2858.8,2858.7,0.3229]
[1763950342102,0.00267341,2860.0,2859.1,12.753374]
[1763950342338,0.4612,2861.6,2859.8,3.7838]
[1763950342521,0.1851,2862.0,2860.0,3.7838]
[1763950342834,0.1851,2862.0,2861.0,3.7838]
[1763950343027,0.4612,2861.9,2861.0,3.7838]
[1763950343336,0.4612,2861.9,2861.3,3.7838]
[1763950343544,0.4612,2861.9,2861.5,0.091]
[1763950344203,0.4612,2861.9,2859.6,3.49693644]
[1763950344404,0.4612,2861.9,2858.9,3.4978393]
[1763950344405,0.4612,2861.9,2861.3,0.091]
[1763950344604,0.4612,2861.9,2859.7,7.57943424]
[1763950344605,0.4612,2861.9,2859.7,10.84030454]
[1763950344813,0.4612,2861.9,2861.3,0.091]
[1763950345150,0.90699264,2862.2,2861.1,3.737223]
[1763950345376,0.59844397,2864.1,2861.2,3.737223]
[1763950345377,0.4612,2862.3,2861.2,3.737223]
[1763950345642,0.1851,2862.5,2860.6,10.48731033]
[1763950345643,0.6463,2862.5,2861.7,0.091]
[1763950345938,0.4612,2862.4,2861.8,3.737223]
[1763950346456,0.4612,2862.4,2861.1,8.951547]
[1763950346605,0.4612,2862.4,2860.6,4.961417]
[1763950346802,0.4612,2862.4,2861.5,0.091]
[1763950347040,0.1851,2861.6,2861.5,0.091]
[1763950347212,0.1851,2861.6,2860.6,0.236]
[1763950347213,0.4612,2862.4,2861.7,0.091]
[1763950347409,0.1851,2861.9,2861.8,3.828223]
[1763950347712,0.4612,2862.4,2862.0,0.091]
[1763950347931,0.4612,2862.4,2861.3,7.46813171]